[Event "Kenya Olympiad Qualifiers (W)"]
[Site "followchess.com"]
[Date "2020.02.23"]
[Round "5"]
[White "Madelta Glenda"]
[Black "Mongeli, Sasha"]
[Result "1-0"]
[WhiteElo "1423"]
[BlackElo "1534"]
[ECO "D02"]
[WhiteFed "KEN"]
[BlackFed "KEN"]
[FCGameId "-279292566"]
[WhiteFideId "10814949"]
[BlackFideId "10809090"]
[TimeControl "5400+30"]

1. d4 {[%clk 1:28:46]} Nf6 {[%clk 1:30:47]} 2. Nf3 {[%clk 1:28:47]} d5 
{[%clk 1:31:11]} 3. Bf4 {[%clk 1:28:45]} c5 {[%clk 1:31:16]} 4. e3 
{[%clk 1:28:11]} a6 {[%clk 1:31:32]} 5. Nbd2 {[%clk 1:26:09]} Nc6 
{[%clk 1:31:45]} 6. Bd3 e6 {[%clk 1:31:50]} 7. c3 {[%clk 1:25:47]} Bd6 
{[%clk 1:31:36]} 8. Ne5 {[%clk 1:25:18]} b5 {[%clk 1:30:46]} 9. Nxc6 
{[%clk 1:25:37]} Qc7 {[%clk 1:31:00]} 10. Ne5 {[%clk 1:25:43]} c4 
{[%clk 1:30:59]} 11. Bc2 {[%clk 1:26:00]} Bb7 {[%clk 1:31:23]} 12. Ndf3 
{[%clk 1:26:17]} h6 {[%clk 1:31:29]} 13. Qe2 {[%clk 1:23:57]} O-O-O 
{[%clk 1:28:51]} 14. a4 {[%clk 1:21:50]} Ne4 {[%clk 1:28:54]} 15. axb5 
{[%clk 1:21:16]} axb5 {[%clk 1:29:11]} 16. Nd2 {[%clk 1:20:08]} g5 
{[%clk 1:28:15]} 17. Bg3 {[%clk 1:18:44]} Nxg3 {[%clk 1:27:50]} 18. hxg3 
{[%clk 1:18:53]} Bxe5 {[%clk 1:28:02]} 19. dxe5 {[%clk 1:19:20]} Qxe5 
{[%clk 1:28:02]} 20. Qh5 {[%clk 1:17:41]} d4 {[%clk 1:23:39]} 21. cxd4 
{[%clk 1:16:36]} Rxd4 {[%clk 1:23:45]} 22. Nf3 {[%clk 1:16:55]} Bxf3 
{[%clk 1:23:53]} 23. Qxf3 {[%clk 1:17:19]} Rd7 {[%clk 1:17:17]} 24. O-O 
{[%clk 1:13:07]} Kd8 {[%clk 1:13:25]} 25. Rfd1 {[%clk 1:12:47]} Rxd1+ 
{[%clk 1:09:16]} 26. Qxd1+ {[%clk 1:13:11]} Ke7 {[%clk 1:08:59]} 27. Ra7+ 
{[%clk 1:13:17]} Kf8 {[%clk 1:06:48]} 28. Ra8+ {[%clk 1:13:29]} Kg7 
{[%clk 1:05:37]} 29. Rxh8 {[%clk 1:13:38]} Kxh8 {[%clk 1:06:05]} 30. Qd4 
{[%clk 1:14:02]} Qxd4 {[%clk 1:06:12]} 31. exd4 {[%clk 1:14:30]} Kg7 
{[%clk 1:06:36]} 32. Kf1 {[%clk 1:14:07]} Kf6 {[%clk 1:07:02]} 33. Ke2 
{[%clk 1:14:18]} Ke7 {[%clk 1:07:27]} 34. Ke3 {[%clk 1:14:18]} Kd6 
{[%clk 1:07:48]} 35. g4 {[%clk 1:13:20]} f6 {[%clk 1:02:48]} 36. b3 
{[%clk 1:13:35]} Kd5 {[%clk 1:02:05]} 37. Be4+ {[%clk 1:13:06]} Kd6 
{[%clk 1:02:24]} 38. b4 {[%clk 1:13:19]} e5 {[%clk 0:59:52]} 39. d5 
{[%clk 1:13:16]} Kc7 {[%clk 0:59:46]} 40. g3 {[%clk 1:11:03]} Kd6 
{[%clk 0:59:58]} 41. f4 {[%clk 1:08:34]} Ke7 {[%clk 0:52:46]} 42. fxe5 
{[%clk 1:07:57]} fxe5 {[%clk 0:53:02]} 43. Bc2 {[%clk 1:08:21]} Kd6 
{[%clk 0:52:12]} 44. Ke4 {[%clk 1:08:41]} c3 {[%clk 0:51:47]} 45. Bd3 
{[%clk 1:09:01]} Ke7 {[%clk 0:49:49]} 46. Kxe5 {[%clk 1:09:24]} Kd7 
{[%clk 0:50:03]} 47. Bxb5+ {[%clk 1:09:44]} Ke7 {[%clk 0:50:20]} 48. d6+ 
{[%clk 1:10:02]} Kd8 {[%clk 0:50:43]} 49. Ba4 {[%clk 1:10:21]} Kc8 
{[%clk 0:50:23]} 50. d7+ {[%clk 1:10:39]} Kc7 {[%clk 0:50:22]} 51. Ke6 
{[%clk 1:11:02]} c2 {[%clk 0:50:20]} 52. Bxc2 {[%clk 1:11:04]} Kd8 
{[%clk 0:50:39]} 53. Bg6 {[%clk 1:10:57]} h5 {[%clk 0:50:42]} 54. Bxh5 
{[%clk 1:11:19]} Kc7 {[%clk 0:50:54]} 55. Ke7 {[%clk 1:11:44]} Kc6 
{[%clk 0:50:48]} 56. d8=Q {[%clk 1:11:57]} Kb5 {[%clk 0:51:07]} 57. Qd4 
{[%clk 1:11:53]} Ka6 {[%clk 0:51:06]} 58. Bg6 {[%clk 1:10:36]} Kb5 
{[%clk 0:51:20]} 59. Be4 {[%clk 1:10:19]} Ka4 {[%clk 0:51:41]} 60. Bc2+ 
{[%clk 1:09:45]} Ka3 {[%clk 0:51:48]} 61. Qc3+ {[%clk 1:10:04]} Ka2 
{[%clk 0:51:33]} 62. Qb3+ {[%clk 1:10:04]} Ka1 {[%clk 0:52:00]} 63. Qb1# 
{[%clk 1:10:24]} {-error} 1-0

[Event "Kenya Olympiad Qualifiers (W)"]
[Site "followchess.com"]
[Date "2020.02.23"]
[Round "5"]
[White "Ngima, Cheryl"]
[Black "Mwikali, Daphne"]
[Result "1/2-1/2"]
[WhiteElo "1362"]
[BlackElo "1537"]
[ECO "B08"]
[WhiteFed "KEN"]
[BlackFed "KEN"]
[FCGameId "-2099480981"]
[WhiteFideId "10808973"]
[BlackFideId "10802274"]
[TimeControl "5400+30"]

1. e4 {[%clk 1:29:33]} d6 {[%clk 1:30:43]} 2. Nf3 {[%clk 1:29:52]} Nf6 
{[%clk 1:30:48]} 3. Nc3 {[%clk 1:30:14]} g6 {[%clk 1:31:00]} 4. d4 
{[%clk 1:30:30]} Bg7 {[%clk 1:31:11]} 5. Bd3 {[%clk 1:30:39]} Nc6 
{[%clk 1:31:14]} 6. h3 {[%clk 1:31:02]} e5 {[%clk 1:31:08]} 7. Ne2 
{[%clk 1:31:11]} exd4 {[%clk 1:28:41]} 8. Nexd4 {[%clk 1:30:40]} Nxd4 
{[%clk 1:28:20]} 9. Nxd4 Nd7 10. c3 {[%clk 1:29:02]} Nc5 {[%clk 1:25:38]} 11. 
Bc2 {[%clk 1:29:13]} Qe7 {[%clk 1:24:47]} 12. O-O {[%clk 1:29:06]} O-O 
{[%clk 1:24:21]} 13. f3 {[%clk 1:28:48]} a6 {[%clk 1:23:00]} 14. Bf4 
{[%clk 1:27:32]} Qh4 {[%clk 1:18:07]} 15. Ne2 {[%clk 1:27:25]} Ne6 
{[%clk 1:14:41]} 16. Bg3 {[%clk 1:27:22]} Qh5 {[%clk 1:08:46]} 17. Nf4 
{[%clk 1:22:58]} Qg5 {[%clk 1:05:35]} 18. Nxe6 {[%clk 1:23:10]} Bxe6 
{[%clk 1:05:26]} 19. Kh2 {[%clk 1:23:33]} Qb5 {[%clk 1:00:57]} 20. Bb3 
{[%clk 1:23:32]} Rae8 {[%clk 0:57:28]} 21. Ba4 {[%clk 1:19:15]} Qxb2 
{[%clk 0:55:59]} 22. Bxe8 {[%clk 1:19:28]} Rxe8 {[%clk 0:56:03]} 23. Qc1 Qxc3 
24. Qxc3 {[%clk 1:17:02]} Bxc3 {[%clk 0:56:09]} 25. Rac1 {[%clk 1:16:04]} Ba5 
{[%clk 0:50:40]} 26. Rc2 {[%clk 1:16:07]} Bd7 {[%clk 0:50:09]} 27. Be1 
{[%clk 1:15:25]} Bb5 {[%clk 0:39:34]} 28. Bxa5 {[%clk 1:11:38]} Bxf1 
{[%clk 0:39:07]} 29. Rxc7 {[%clk 1:11:38]} Re6 {[%clk 0:26:46]} 30. Rxb7 
{[%clk 1:09:57]} f5 {[%clk 0:23:22]} 31. Kg1 {[%clk 1:07:25]} Bb5 
{[%clk 0:22:23]} 32. exf5 {[%clk 1:07:32]} gxf5 {[%clk 0:22:04]} 33. Bb4 
{[%clk 1:03:38]} d5 {[%clk 0:21:02]} 34. Re7 {[%clk 1:02:00]} Rxe7 
{[%clk 0:20:50]} 35. Bxe7 {[%clk 1:01:59]} Kf7 {[%clk 0:21:13]} 36. Bc5 
{[%clk 1:02:19]} Ke6 {[%clk 0:20:59]} 37. Bd4 {[%clk 1:02:22]} Bc4 
{[%clk 0:19:53]} 38. a3 {[%clk 1:02:36]} Kf7 {[%clk 0:19:12]} 39. f4 
{[%clk 1:02:35]} Ke6 {[%clk 0:18:29]} 40. Kf2 {[%clk 1:01:04]} Kf7 
{[%clk 0:17:19]} 41. g4 {[%clk 1:01:21]} Kg6 {[%clk 0:16:45]} 42. g5 
{[%clk 1:00:34]} Kh5 {[%clk 0:16:48]} 43. Kg3 {[%clk 1:00:55]} Be2 
{[%clk 0:14:29]} 1/2-1/2

[Event "Kenya Olympiad Qualifiers (W)"]
[Site "followchess.com"]
[Date "2020.02.23"]
[Round "5"]
[White "Mutisya, Jully"]
[Black "Gosrani, Naiya"]
[Result "0-1"]
[WhiteElo "1270"]
[BlackElo "1359"]
[ECO "B43"]
[WhiteFed "KEN"]
[BlackFed "KEN"]
[FCGameId "-119102477"]
[WhiteFideId "10814922"]
[BlackFideId "10805397"]
[TimeControl "5400+30"]

1. e4 {[%clk 1:31:00]} c5 {[%clk 1:27:52]} 2. Nf3 {[%clk 1:31:24]} e6 
{[%clk 1:28:10]} 3. d4 {[%clk 1:31:51]} cxd4 {[%clk 1:28:33]} 4. Nxd4 
{[%clk 1:32:17]} a6 {[%clk 1:28:57]} 5. Nc3 {[%clk 1:32:35]} Qc7 
{[%clk 1:29:24]} 6. Be2 {[%clk 1:32:23]} Nf6 {[%clk 1:29:46]} 7. O-O 
{[%clk 1:32:00]} Nc6 {[%clk 1:29:10]} 8. Nxc6 {[%clk 1:30:58]} bxc6 
{[%clk 1:29:08]} 9. Be3 {[%clk 1:29:43]} d5 {[%clk 1:27:53]} 10. exd5 
{[%clk 1:24:08]} cxd5 {[%clk 1:27:44]} 11. Qd2 {[%clk 1:21:24]} Bd6 
{[%clk 1:27:48]} 12. h3 {[%clk 1:20:10]} O-O {[%clk 1:28:04]} 13. Bf3 
{[%clk 1:19:32]} Bb7 {[%clk 1:27:49]} 14. a3 {[%clk 1:17:30]} Rfd8 
{[%clk 1:26:41]} 15. Ne2 {[%clk 1:13:47]} Rac8 {[%clk 1:23:50]} 16. c3 
{[%clk 1:13:09]} Nd7 {[%clk 1:19:29]} 17. Rac1 {[%clk 1:07:29]} Ne5 
{[%clk 1:16:17]} 18. Nd4 {[%clk 1:01:26]} Nc4 {[%clk 1:15:02]} 19. Qe2 
{[%clk 0:58:26]} Nxe3 {[%clk 1:15:15]} 20. Qxe3 {[%clk 0:58:35]} Bf4 
{[%clk 1:14:08]} 21. Nxe6 {[%clk 0:54:38]} fxe6 {[%clk 1:07:05]} 22. Qxe6+ 
{[%clk 0:54:43]} Qf7 {[%clk 1:05:40]} 23. Qxf7+ {[%clk 0:52:50]} Kxf7 
{[%clk 1:05:44]} 24. Rcd1 {[%clk 0:53:10]} a5 {[%clk 1:01:51]} 25. Rfe1 
{[%clk 0:51:53]} Re8 {[%clk 0:59:41]} 26. Rxe8 {[%clk 0:51:34]} Rxe8 
{[%clk 0:59:47]} 27. g3 {[%clk 0:51:30]} Bc7 {[%clk 0:52:35]} 28. Bxd5+ 
{[%clk 0:51:03]} Bxd5 {[%clk 0:50:11]} 29. Rxd5 {[%clk 0:51:30]} Rd8 
{[%clk 0:41:47]} 30. Rxd8 {[%clk 0:47:15]} Bxd8 {[%clk 0:42:07]} 31. a4 
{[%clk 0:47:42]} Ke6 {[%clk 0:39:08]} 32. Kf1 {[%clk 0:45:23]} Kd5 
{[%clk 0:39:31]} 33. Ke2 {[%clk 0:38:42]} Kc4 {[%clk 0:39:46]} 34. Kd2 
{[%clk 0:38:10]} Kb3 {[%clk 0:39:34]} 35. Kc1 {[%clk 0:38:35]} Bb6 
{[%clk 0:39:49]} 36. f3 {[%clk 0:38:18]} Be3+ {[%clk 0:39:43]} 37. Kb1 
{[%clk 0:38:41]} h5 {[%clk 0:37:54]} 38. g4 {[%clk 0:38:03]} hxg4 
{[%clk 0:37:24]} 39. fxg4 {[%clk 0:38:29]} g5 {[%clk 0:37:41]} 40. Ka1 
{[%clk 0:37:58]} Bc1 {[%clk 0:35:52]} 41. Kb1 {[%clk 0:38:04]} Bxb2 
{[%clk 0:36:10]} 42. c4 {[%clk 0:36:05]} Bd4 {[%clk 0:36:27]} 43. Kc1 
{[%clk 0:35:41]} Kxa4 {[%clk 0:36:30]} 44. Kc2 {[%clk 0:36:04]} Kb4 
{[%clk 0:36:44]} 45. Kd3 {[%clk 0:36:01]} Kc5 {[%clk 0:36:10]} 46. Ke4 
{[%clk 0:34:38]} Kxc4 {[%clk 0:36:13]} 47. Kf5 {[%clk 0:35:03]} Be3 
{[%clk 0:36:25]} 48. h4 {[%clk 0:35:12]} gxh4 {[%clk 0:34:40]} 49. g5 
{[%clk 0:35:41]} Bxg5 {[%clk 0:34:57]} 50. Kxg5 {[%clk 0:36:06]} h3 
{[%clk 0:35:15]} 51. Kf5 {[%clk 0:36:28]} h2 52. Ke4 h1=Q+ 53. Ke5 Qd5+ 
{[%clk 0:34:54]} 54. Kf4 {[%clk 0:36:55]} Qe6 {[%clk 0:35:12]} 55. Kf3 
{[%clk 0:37:17]} Qe5 {[%clk 0:35:36]} 56. Kf2 {[%clk 0:37:39]} Qe4 
{[%clk 0:35:58]} 57. Kg3 {[%clk 0:38:03]} Qf5 {[%clk 0:36:18]} 58. Kg2 
{[%clk 0:38:29]} Qf4 {[%clk 0:36:40]} 59. Kh3 {[%clk 0:38:57]} Qg5 
{[%clk 0:37:04]} 60. Kh2 {[%clk 0:39:23]} Qg4 {[%clk 0:37:26]} 61. Kh1 
{[%clk 0:39:51]} Kd3 {[%clk 0:37:48]} 62. Kh2 {[%clk 0:40:19]} Ke3 
{[%clk 0:38:13]} 63. Kh1 {[%clk 0:40:45]} Kf2 {[%clk 0:38:40]} 64. Kh2 Qg2# 0-1

[Event "Kenya Olympiad Qualifiers (W)"]
[Site "followchess.com"]
[Date "2020.02.23"]
[Round "5"]
[White "Obondo, Cynthia Awino"]
[Black "Wanjiru, Lucy"]
[Result "0-1"]
[WhiteElo "1234"]
[BlackElo "1614"]
[ECO "A11"]
[WhiteFed "KEN"]
[BlackFed "KEN"]
[FCGameId "509362244"]
[WhiteFideId "10814981"]
[BlackFideId "10808590"]
[TimeControl "5400+30"]

1. c4 {[%clk 1:30:56]} c6 {[%clk 1:29:19]} 2. g3 {[%clk 1:31:19]} d5 
{[%clk 1:29:37]} 3. Bg2 {[%clk 1:31:35]} Bf5 {[%clk 1:29:53]} 4. Nf3 
{[%clk 1:29:57]} e6 {[%clk 1:29:55]} 5. O-O {[%clk 1:29:39]} Nf6 
{[%clk 1:30:08]} 6. d4 {[%clk 1:29:11]} Be7 {[%clk 1:29:21]} 7. Bg5 
{[%clk 1:22:31]} O-O {[%clk 1:28:32]} 8. Nbd2 {[%clk 1:17:56]} h6 
{[%clk 1:27:41]} 9. Bxf6 {[%clk 1:16:53]} Bxf6 {[%clk 1:27:57]} 10. Rc1 
{[%clk 1:16:55]} Nd7 {[%clk 1:28:13]} 11. e3 {[%clk 1:11:55]} Qb6 
{[%clk 1:25:31]} 12. b3 {[%clk 1:07:23]} Be7 {[%clk 1:24:38]} 13. c5 
{[%clk 1:07:14]} Qc7 {[%clk 1:24:48]} 14. Ne1 {[%clk 1:01:11]} e5 
{[%clk 1:23:24]} 15. e4 {[%clk 0:50:40]} dxe4 {[%clk 1:21:02]} 16. Nxe4 
{[%clk 0:50:48]} exd4 {[%clk 1:18:11]} 17. Qxd4 {[%clk 0:50:51]} Rad8 
{[%clk 1:18:16]} 18. Qe3 {[%clk 0:48:23]} Rfe8 {[%clk 1:16:33]} 19. b4 
{[%clk 0:42:22]} Bxe4 {[%clk 1:00:37]} 20. Bxe4 {[%clk 0:40:50]} Kf8 
{[%clk 0:58:24]} 21. f4 {[%clk 0:32:47]} Bxc5 {[%clk 0:56:27]} 22. bxc5 
{[%clk 0:31:55]} f5 {[%clk 0:56:49]} 23. Rc4 {[%clk 0:26:12]} Nf6 
{[%clk 0:56:05]} 24. Nf3 {[%clk 0:25:06]} Rxe4 {[%clk 0:55:43]} 25. Rxe4 
{[%clk 0:24:35]} Nxe4 {[%clk 0:55:26]} 26. Ne5 {[%clk 0:24:34]} Qa5 
{[%clk 0:53:09]} 27. Qb3 {[%clk 0:19:21]} Qxc5+ {[%clk 0:53:15]} 28. Kh1 
{[%clk 0:19:40]} Qd5 {[%clk 0:53:22]} 29. Qxb7 {[%clk 0:13:14]} Nf2+ 
{[%clk 0:49:07]} 30. Kg1 {[%clk 0:13:08]} Nh3# {[%clk 0:49:25]} 0-1

[Event "Kenya Olympiad Qualifiers (W)"]
[Site "followchess.com"]
[Date "2020.02.22"]
[Round "3"]
[White "Mongeli, Sasha"]
[Black "Gosrani, Naiya"]
[Result "1-0"]
[WhiteElo "1534"]
[BlackElo "1359"]
[ECO "C70"]
[WhiteFed "KEN"]
[BlackFed "KEN"]
[FCGameId "-654897831"]
[WhiteFideId "10809090"]
[BlackFideId "10805397"]
[TimeControl "5400+30"]

1. e4 {[%clk 1:28:06]} e5 {[%clk 1:30:55]} 2. Nf3 {[%clk 1:28:28]} Nc6 
{[%clk 1:31:19]} 3. Bb5 {[%clk 1:26:59]} a6 {[%clk 1:30:16]} 4. Ba4 
{[%clk 1:23:25]} b5 {[%clk 1:29:51]} 5. Bb3 {[%clk 1:23:38]} Nf6 
{[%clk 1:29:32]} 6. d3 {[%clk 1:22:47]} Bc5 {[%clk 1:29:19]} 7. O-O 
{[%clk 1:21:09]} O-O {[%clk 1:28:53]} 8. c3 {[%clk 1:16:07]} Ba7 
{[%clk 1:23:42]} 9. a4 {[%clk 1:07:01]} h6 {[%clk 1:20:01]} 10. axb5 
{[%clk 1:05:35]} axb5 {[%clk 1:20:20]} 11. Be3 {[%clk 1:04:09]} d6 
{[%clk 1:06:13]} 12. h3 {[%clk 1:01:44]} Bd7 {[%clk 1:03:57]} 13. Bxa7 
{[%clk 0:59:48]} Rxa7 {[%clk 1:04:09]} 14. Na3 {[%clk 0:55:09]} Ne7 
{[%clk 1:01:23]} 15. Nc2 {[%clk 0:53:20]} Rxa1 {[%clk 1:01:04]} 16. Qxa1 
{[%clk 0:53:37]} Qa8 {[%clk 0:58:04]} 17. Ne3 Qb7 18. Qa2 Be6 19. Ra1 Bd7 20. 
Nh4 Qc8 21. Kh2 Be6 22. Qa3 Qd7 23. Bd1 d5 24. exd5 Nexd5 25. Qc5 Nf4 26. Qxe5 
Nxd3 27. Qd4 Qxd4 28. cxd4 Nxb2 29. Be2 c6 30. Ra6 Bd7 31. Nf3 Rc8 32. Ne5 Kf8 
33. Nxd7+ Nxd7 34. Bf3 c5 35. dxc5 {[%clk 0:53:15]} Rxc5 {[%clk 0:41:46]} 36. 
Be2 {[%clk 0:53:15]} Na4 {[%clk 0:41:46]} 37. Ra5 {[%clk 0:53:15]} Nc3 
{[%clk 0:41:46]} 38. Bd3 {[%clk 0:53:15]} b4 {[%clk 0:41:46]} 39. Ra8+ Ke7 
{[%clk 0:41:46]} 40. Ra7 {[%clk 0:53:15]} g6 {[%clk 0:41:46]} 41. Rb7 
{[%clk 0:53:15]} Na2 {[%clk 0:41:46]} 42. Bb5 {[%clk 0:53:15]} b3 
{[%clk 0:41:46]} 43. Bxd7 {[%clk 0:53:15]} b2 {[%clk 0:41:46]} 44. Ba4+ Kd6 
{[%clk 0:41:46]} 1-0

[Event "Kenya Olympiad Qualifiers (W)"]
[Site "followchess.com"]
[Date "2020.02.22"]
[Round "3"]
[White "Mwendwa, Triza"]
[Black "Wanjiru, Lucy"]
[Result "0-1"]
[WhiteElo "1408"]
[BlackElo "1614"]
[ECO "D00"]
[WhiteFed "KEN"]
[BlackFed "KEN"]
[FCGameId "-444113400"]
[WhiteFideId "10814965"]
[BlackFideId "10808590"]
[TimeControl "5400+30"]

1. d4 d5 {[%clk 1:23:40]} 2. Bf4 {[%clk 1:28:05]} Bf5 {[%clk 1:24:01]} 3. e3 
{[%clk 1:28:32]} Nf6 {[%clk 1:24:26]} 4. Nf3 {[%clk 1:28:39]} e6 
{[%clk 1:24:46]} 5. Bd3 {[%clk 1:28:18]} Bg6 {[%clk 1:24:13]} 6. Nbd2 
{[%clk 1:25:26]} Bd6 {[%clk 1:24:37]} 7. Ne5 {[%clk 1:23:58]} Bxd3 8. Nxd3 
{[%clk 1:23:50]} Bxf4 {[%clk 1:25:13]} 9. Nxf4 {[%clk 1:23:35]} Nbd7 
{[%clk 1:25:09]} 10. c3 {[%clk 1:19:17]} c5 {[%clk 1:25:19]} 11. dxc5 
{[%clk 1:17:13]} Nxc5 {[%clk 1:25:37]} 12. Nb3 {[%clk 1:12:11]} b6 
{[%clk 1:24:15]} 13. f3 {[%clk 1:06:25]} O-O {[%clk 1:24:13]} 14. O-O 
{[%clk 1:05:01]} e5 {[%clk 1:23:28]} 15. Nd3 {[%clk 0:57:21]} Qe7 
{[%clk 1:23:43]} 16. Nb4 {[%clk 0:49:46]} Qd7 {[%clk 1:22:16]} 17. Qe2 
{[%clk 0:45:19]} a5 {[%clk 1:17:51]} 18. Nd3 {[%clk 0:42:38]} Qc7 
{[%clk 1:18:02]} 19. Rad1 {[%clk 0:38:51]} Nxd3 20. Qxd3 e4 21. Qb5 exf3 
{[%clk 1:15:41]} 22. Rxf3 {[%clk 0:26:55]} Rfe8 {[%clk 1:15:41]} 23. Nd4 
{[%clk 0:26:55]} Re5 {[%clk 1:15:41]} 24. h3 {[%clk 0:26:55]} Rh5 
{[%clk 1:15:41]} 25. Ne2 {[%clk 0:26:55]} d4 {[%clk 1:15:41]} 26. Qd3 
{[%clk 0:26:55]} dxc3 {[%clk 1:15:41]} 27. Nxc3 {[%clk 0:26:55]} Re8 
{[%clk 1:15:41]} 28. Qe2 {[%clk 0:26:55]} Rhe5 {[%clk 1:15:41]} 29. Rd3 
{[%clk 0:26:55]} Rc5 {[%clk 1:15:41]} 30. Qd2 {[%clk 0:26:55]} h6 
{[%clk 1:15:41]} 31. a4 {[%clk 0:26:55]} Qe5 {[%clk 1:15:41]} 32. Rd6 
{[%clk 0:26:55]} Re6 {[%clk 1:15:41]} 33. Rd8+ Re8 {[%clk 1:15:41]} 34. Rd6 
{[%clk 0:26:55]} Rxc3 {[%clk 1:15:41]} 35. Rdxf6 {[%clk 0:26:55]} Rc4 
{[%clk 1:15:41]} 36. R6f4 {[%clk 0:26:55]} Rxf4 {[%clk 1:15:41]} 37. exf4 
{[%clk 0:26:55]} Qc5+ 38. Kh2 {[%clk 0:26:55]} Qc7 {[%clk 1:15:41]} 39. Rc3 
{[%clk 0:26:55]} Qe7 {[%clk 1:15:41]} 40. Rd3 {[%clk 0:26:55]} Qf6 
{[%clk 1:15:41]} 41. Rd6 {[%clk 0:26:55]} Re6 {[%clk 1:15:41]} 42. Rxe6 
{[%clk 0:26:55]} Qxe6 {[%clk 1:15:41]} 43. Qd4 {[%clk 0:26:55]} Qb3 
{[%clk 1:15:41]} 44. Qd8+ Kh7 {[%clk 1:15:41]} 0-1

[Event "Kenya Olympiad Qualifiers (W)"]
[Site "followchess.com"]
[Date "2020.02.22"]
[Round "3"]
[White "Madelta Glenda"]
[Black "Ndirangu, Joyce Nyaruai"]
[Result "0-1"]
[WhiteElo "1423"]
[BlackElo "1658"]
[ECO "A45"]
[WhiteFed "KEN"]
[BlackFed "KEN"]
[FCGameId "1308854462"]
[WhiteFideId "10814949"]
[BlackFideId "10802886"]
[TimeControl "5400+30"]

1. d4 {[%clk 1:26:46]} Nf6 {[%clk 1:25:10]} 2. Nc3 {[%clk 1:27:01]} e6 
{[%clk 1:25:26]} 3. a3 {[%clk 1:27:16]} c5 {[%clk 1:25:20]} 4. Nf3 
{[%clk 1:24:52]} Nc6 {[%clk 1:22:30]} 5. Bf4 {[%clk 1:24:50]} Be7 
{[%clk 1:21:32]} 6. e3 {[%clk 1:24:50]} a6 {[%clk 1:21:41]} 7. dxc5 
{[%clk 1:23:07]} Bxc5 {[%clk 1:20:36]} 8. Bd6 {[%clk 1:23:03]} Bxd6 
{[%clk 1:20:47]} 9. Qxd6 {[%clk 1:23:17]} Qe7 {[%clk 1:21:15]} 10. Qg3 
{[%clk 1:21:16]} b5 {[%clk 1:05:39]} 11. Bd3 {[%clk 0:52:40]} Nh5 
{[%clk 1:00:18]} 12. Qc7 {[%clk 0:50:20]} O-O {[%clk 0:57:12]} 13. g4 
{[%clk 0:35:28]} Nf6 {[%clk 0:57:12]} 14. Qg3 {[%clk 0:35:28]} b4 
{[%clk 0:57:12]} 15. Ne4 {[%clk 0:35:28]} Nxe4 {[%clk 0:57:12]} 16. Bxe4 
{[%clk 0:35:28]} d5 {[%clk 0:57:12]} 17. Bd3 {[%clk 0:35:28]} Qf6 
{[%clk 0:57:12]} 18. Qh3 {[%clk 0:35:28]} g6 {[%clk 0:57:12]} 19. b3 
{[%clk 0:35:28]} Qxa1+ 20. Ke2 {[%clk 0:35:28]} Qxh1 {[%clk 0:57:12]} 21. a4 
{[%clk 0:35:28]} e5 {[%clk 0:57:12]} 22. e4 {[%clk 0:35:28]} h5 {[%clk 0:57:12]} 
23. Qg3 {[%clk 0:35:28]} Bxg4 {[%clk 0:57:12]} 24. exd5 {[%clk 0:35:28]} Nd4+ 
0-1

[Event "Kenya Olympiad Qualifiers (W)"]
[Site "followchess.com"]
[Date "2020.02.22"]
[Round "3"]
[White "Ngima, Cheryl"]
[Black "Ogaga Nicole Albright Shamira"]
[Result "1/2-1/2"]
[WhiteElo "1362"]
[BlackElo "1213"]
[ECO "C41"]
[WhiteFed "KEN"]
[BlackFed "KEN"]
[FCGameId "-510178934"]
[WhiteFideId "10808973"]
[BlackFideId "10813330"]
[TimeControl "5400+30"]

1. e4 d6 {[%clk 1:23:58]} 2. d4 {[%clk 1:31:11]} Nf6 {[%clk 1:23:24]} 3. Nc3 
{[%clk 1:31:32]} Nbd7 {[%clk 1:23:32]} 4. Nf3 e5 {[%clk 1:23:09]} 5. Bc4 
{[%clk 1:27:36]} Be7 {[%clk 1:23:27]} 6. Bxf7+ {[%clk 1:07:03]} Kxf7 
{[%clk 1:24:18]} 7. Ng5+ {[%clk 1:07:28]} Kg8 {[%clk 1:24:22]} 8. Ne6 
{[%clk 1:07:14]} Qe8 {[%clk 1:24:39]} 9. Nxc7 {[%clk 1:07:30]} Qg6 
{[%clk 1:24:57]} 10. Nxa8 {[%clk 1:02:18]} Qxg2 {[%clk 1:25:18]} 11. Rf1 
{[%clk 1:02:38]} exd4 {[%clk 1:25:20]} 12. f3 {[%clk 0:42:53]} dxc3 
{[%clk 1:23:09]} 13. Nc7 {[%clk 0:39:44]} Ne5 {[%clk 1:22:06]} 14. Qe2 Qh3 15. 
bxc3 Nxe4 16. Qxe4 Bh4+ 17. Rf2 Bxf2+ 18. Kxf2 Qxh2+ 19. Ke3 Qg1+ 20. Ke2 Qg2+ 
21. Ke3 Qg1+ 22. Ke2 Qg2+ 23. Ke3 Qg5+ 24. Ke2 Qg2+ 25. Ke3 {[%clk 0:36:17]} 
1/2-1/2

[Event "Kenya Olympiad Qualifiers (W)"]
[Site "followchess.com"]
[Date "2020.02.21"]
[Round "2"]
[White "Ogaga Nicole Albright Shamira"]
[Black "Mutisya, Jully"]
[Result "1-0"]
[WhiteElo "1213"]
[BlackElo "1270"]
[ECO "B07"]
[WhiteFed "KEN"]
[BlackFed "KEN"]
[FCGameId "1302953970"]
[WhiteFideId "10813330"]
[BlackFideId "10814922"]
[TimeControl "5400+30"]

1. e4 {[%clk 1:25:15]} d6 {[%clk 1:27:20]} 2. d4 {[%clk 1:25:27]} Nf6 
{[%clk 1:27:42]} 3. Nc3 {[%clk 1:25:34]} g6 {[%clk 1:27:57]} 4. Bd3 
{[%clk 1:25:23]} Bg7 {[%clk 1:28:04]} 5. f3 {[%clk 1:25:23]} Nc6 
{[%clk 1:27:53]} 6. Be3 {[%clk 1:25:00]} e5 {[%clk 1:27:25]} 7. Nge2 
{[%clk 1:24:39]} Nh5 {[%clk 1:23:44]} 8. d5 {[%clk 1:22:35]} Nd4 
{[%clk 1:20:22]} 9. Qd2 {[%clk 1:22:06]} Nxe2 {[%clk 1:13:18]} 10. Bxe2 
{[%clk 1:22:26]} O-O {[%clk 1:12:07]} 11. O-O-O {[%clk 1:22:49]} a6 
{[%clk 1:10:39]} 12. g4 {[%clk 1:21:01]} Nf6 {[%clk 1:10:37]} 13. h4 
{[%clk 1:17:01]} h5 {[%clk 1:09:24]} 14. Bg5 {[%clk 1:15:48]} b5 
{[%clk 1:08:51]} 15. gxh5 {[%clk 1:08:11]} gxh5 {[%clk 1:08:31]} 16. Rdg1 
{[%clk 1:08:31]} Kh7 {[%clk 1:06:05]} 17. Nd1 {[%clk 1:02:57]} Bd7 
{[%clk 1:03:54]} 18. Rg2 {[%clk 1:01:25]} Rg8 {[%clk 1:03:23]} 19. Rhg1 
{[%clk 1:00:38]} Qe7 {[%clk 1:01:11]} 20. Ne3 {[%clk 0:58:28]} a5 
{[%clk 0:57:39]} 21. Bd3 {[%clk 0:51:30]} b4 {[%clk 0:55:59]} 22. f4 
{[%clk 0:48:35]} Bh6 {[%clk 0:52:04]} 23. fxe5 Bxg5 {[%clk 0:52:04]} 24. Rxg5 
dxe5 {[%clk 0:52:04]} 25. Nf5 Bxf5 {[%clk 0:52:04]} 26. exf5 Rxg5 
{[%clk 0:52:04]} 27. Qxg5 Rg8 {[%clk 0:52:04]} 28. Qxg8+ Nxg8 {[%clk 0:52:04]} 
29. f6+ Kh6 {[%clk 0:52:04]} 30. fxe7 Nxe7 {[%clk 0:52:04]} 31. Bc4 f5 
{[%clk 0:52:04]} 32. Kd2 Ng6 {[%clk 0:52:04]} 33. Rh1 e4 {[%clk 0:52:04]} 34. 
Ke3 Ne5 {[%clk 0:52:04]} 35. b3 Ng4+ 36. Kf4 Kg6 {[%clk 0:52:04]} 37. Rg1 Kf6 
{[%clk 0:52:04]} 38. Be2 Kg6 {[%clk 0:52:04]} 39. Bxg4 hxg4 {[%clk 0:52:04]} 40. 
h5+ 1-0